Workbook

Sheet 1. Forside
A1: Århus Vand A/S (spildevand)
D8: Bilag A
D13: Indholdsfortegnelse
C16: Fane nr. 2 | D16: Samlet prisloft
C17: Fane nr. 3 | D17: Driftsomkostninger
C18: Fane nr. 4 | D18: Historiske investeringer
C19: Fane nr. 5 | D19: Gennemførte investeringer
C20: Fane nr. 6 | D20: Korrektion investeringer
C21: Fane nr. 7 | D21: Planlagte investeringer
C22: Fane nr. 8 | D22: 1:1 omkostninger
C23: Fane nr. 9 | D23: Miljø- og servicemål
C24: Fane nr. 10 | D24: Klimatilpasning
C25: Fane nr. 11 | D25: Nettofinansielle poster
C26: Fane nr. 12 | D26: Over- eller underdækning
C27: Fane nr. 13 | D27: Kontrol med indtægtsrammen og oversigt over ekstraordinære effektiviseringsgevinster
C28: Fane nr. 14 | D28: EAA-beregning

Sheet 2. Samlet prisloft
A1: ='1. Forside'!A1 -> Århus Vand A/S (spildevand)
B4: Fane 2. Samlet prisloft for 2015
B6: Driftsomkostninger
B7: Driftsomkostninger i prisloftet for 2014 | C7: ='3. Driftsomkostninger'!C20 -> 137621950.5 | D7: kr.
B8: Bortfald af væsentlige omkostninger | C8: =-'3. Driftsomkostninger'!C16 -> 0 | D8: kr.
B9: Korrektion for prisudviklingen 2014-2015 | C9: ='3. Driftsomkostninger'!C22 -> 110097.5604 | D9: kr.
B10: Forhøjelse til effektivt niveau iht. benchmarkingen | C10: ='3. Driftsomkostninger'!C28 -> 0 | D10: kr.
B11: Korrektion for generelt effektiviseringskrav | C11: =-'3. Driftsomkostninger'!C34 -> -605536.582 | D11: kr.
B12: Korrektion for individuelt effektiviseringskrav | C12: =-'3. Driftsomkostninger'!C43 -> -2446230.25 | D12: kr.
B13: Driftsomkostninger i alt | C13: =SUM(C7:C12) -> 134680281.2 | D13: kr. | E13: =C13 -> 134680281.2 | F13: kr.
B14: Investeringer
B15: Tillæg for historiske investeringer | C15: ='4. Historiske investeringer'!C9 -> 175394597.3 | D15: kr.
B16: Tillæg for gennemførte investeringer i 2011-2013 | C16: ='5. Gennemførte investeringer'!F21 -> 23745596.2 | D16: kr.
B17: Korrektion af tillæg for planlagte investeringer vedrørende 2013 | C17: ='6. Korrektion investeringer'!C10 -> -2235921.16 | D17: kr.
B18: Tillæg for planlagte investeringer i 2014 og 2015 | C18: ='7. Planlagte investeringer'!F24 -> 13566000 | D18: kr.
B19: Investeringstillæg i alt | C19: =SUM(C15:C18) -> 210470272.3 | D19: kr. | E19: =C19 -> 210470272.3 | F19: kr.
B20: Øvrige omkostninger mv.
B21: Tillæg for 1:1 omkostninger i 2015 | C21: ='8. 1-1 omkostninger'!C13 -> 16216500 | D21: kr.
B22: Tillæg vedr. revisorerklæringer og DANVA/FVD-kontingent | C22: ='8. 1-1 omkostninger'!C21 -> 325000 | D22: kr.
B23: Korrektion ift. faktiske 1:1 omkostninger i 2013 | C23: ='8. 1-1 omkostninger'!C27 -> 2419313 | D23: kr.
B24: Tillæg for driftsomkostninger til miljø- og servicemål i 2015 | C24: ='9. Miljø- og servicemål'!C9 -> 100000 | D24: kr.
B25: Korrektion ift. faktiske driftsomkostninger til miljø- og servicemål i 2013 | C25: ='9. Miljø- og servicemål'!C16 -> 0 | D25: kr.
B26: Tillæg for driftsomkostninger til medfinansiering af klimatilpasningsprojekter i 2015 | C26: ='10. Klimatilpasning'!C11 -> 2522867 | D26: kr.
B27: Korrektion ift. faktiske omkostninger til medfinansiering af klimatilpasningsprojekter i 2013 | C27: ='10. Klimatilpasning'!C18 -> -2151630 | D27: kr.
B28: Tillæg/fradrag for nettofinansielle poster i 2015 | C28: ='11. Nettofinansielle poster'!C9 -> 8800000 | D28: kr.
B29: Korrektion ift. faktiske nettofinansielle poster i 2013 | C29: ='11. Nettofinansielle poster'!C16 -> -3074311 | D29: kr.
B30: Øvrige omkostninger mv. i alt | C30: =SUM(C21:C29) -> 25157739 | D30: kr. | E30: =C30 -> 25157739 | F30: kr.
B31: Historisk over- eller underdækning
B32: Tillæg/fradrag for over- eller underdækning til og med 2010 | C32: ='12. Over- eller underdækning'!C11 -> 4326378.627 | D32: kr. | E32: =C32 -> 4326378.627 | F32: kr.
B33: Korrektion i forhold til tidligere indtægtsramme
B34: Korrektion for overholdelse af indtægtsramme i prisloft 2013 | C34: ='13. Kontrol med indtægtsrammen'!E27 -> 33044426.66 | D34: kr. | E34: =C34 -> 33044426.66 | F34: kr.
B35: Samlet prisloft
B36: Indtægtsramme i 2015 | E36: =SUM(E13:E34) -> 407679097.8 | F36: kr.
B37: Debiteret vandmængde i 2013 | E37: 14901462 | F37: m3
B38: Prisloft 2015 | E38: =E36/E37 -> 27.35832885 | F38: kr./m3

Sheet 3. Driftsomkostninger
A1: ='1. Forside'!A1 -> Århus Vand A/S (spildevand)
B4: Fane 3. Driftsomkostninger
B6: Driftsomkostningerne i prisloftet for 2014
B7: Korrigerede driftsomkostninger i prisloftet for 2013 (DOiPL 2013) | C7: 137576764 | D7: kr.
B8: Prisfremskrivning 1,5 pct. | C8: =0.015*SUM(C7:C7) -> 2063651.46 | D8: kr.
B9: Generelt effektiviseringskrav (0 pct.) | C9: 0 | D9: kr.
B10: Individuelt effektiviseringskrav | C10: -2018465 | D10: kr.
B11: Driftsomkostningerne i prisloftet for 2014 (DOiPL 2014) | C11: =SUM(C7:C10) -> 137621950.5 | D11: kr.
B14: Korrektion for forventet bortfald af væsentlige omkostninger
B15: Selskabets indberettede bortfald af væsentlige omkostninger inden 2015 | C15: 0 | D15: kr.
B16: Korrektion for forventet bortfald | C16: =SUM(C15:C15) -> 0 | D16: kr.
B19: Korrektion for prisudviklingen fra 2014-2015
B20: Driftsomkostningerne i prisloftet for 2014 | C20: =C11-C16 -> 137621950.5 | D20: kr.
B21: Prisudvikling 2014 - 2015 | C21: 0.08 | D21: pct.
B22: Korrektion for prisudvikling | C22: =C20*(C21/100) -> 110097.5604 | D22: kr.
B25: Eventuel forhøjelse til effektivt niveau iht. benchmarkingen
B26: Selskabets effektive driftsomkostninger iht. benchmarkingen | C26: 110441615 | D26: kr.
B27: Selskabets pristalskorrigerede driftsomkostninger i 2015-niveau | C27: =C20+C22 -> 137732048 | D27: kr.
B28: Eventuel forhøjelse til effektivt niveau | C28: =IF(C27>C26,0,C26-C27) -> 0 | D28: kr.
B31: Korrektion for generelt effektiviseringskrav
B32: Driftsomkostningerne i prisloftet for 2014 | C32: =C20 -> 137621950.5 | D32: kr.
B33: Generelt effektiviseringskrav | C33: 0.44 | D33: pct.
B34: Endeligt generelt effektiviseringskrav | C34: =C32*(C33/100) -> 605536.582 | D34: kr.
B37: Korrektion for individuelt effektiviseringskrav
B38: Rå effektiviseringspotentiale | C38: 27180335 | D38: kr.
B39: Effektiviseringspotentiale efter eventuel korrektion for særlige forhold | C39: 27180335 | D39: kr.
B40: Effektiviseringspotentiale efter forsigtighedshensyn | C40: 9784921 | D40: kr.
B41: Effektiviseringspotentiale efter eventuel korrektion for sammensætning af signifikante costdrivere | C41: 9784921 | D41: kr.
B42: Umiddelbart effektiviseringskrav | C42: =C41/4 -> 2446230.25 | D42: kr.
B43: Endeligt individuelt effektiviseringskrav | C43: =IF(C42>0.05*C20,0.05*C20,IF(C42<0.01*C20,0,C42)) -> 2446230.25 | D43: kr.

Sheet 4. Historiske investeringer
A1: ='3. Driftsomkostninger'!A1 -> Århus Vand A/S (spildevand)
B4: Fane 4. Historiske investeringer
B6: Tillæg for historiske investeringer
B7: Værdi af selskabets materielle anlægsaktiver pr. 1. januar 2010 | C7: 7208968962 | D7: kr.
B8: Den årlige standardafskrivning på de materielle anlægsaktiver iht. POLKA | C8: 175394597.3 | D8: kr.
B9: Tillæg i alt i 2015 | C9: =C8 -> 175394597.3 | D9: kr.

Sheet 5. Gennemførte investeringer
A1: ='4. Historiske investeringer'!A1 -> Århus Vand A/S (spildevand)
B4: Fane 5. Gennemførte investeringer i 2010 - 2013
B6: Tillæg for gennemførte investeringer i 2013
B7: Beskrivelse af investeringen | C7: Årstal | D7: Std. levetid (år) | E7: Anskaffelses-pris (kr.) | F7: Afskrivning
B8: Arbejdsplads | C8: 2013 | D8: 5 | E8: 4865614 | F8: =E8/D8 -> 973122.8 | G8: kr.
B9: Jordbassin Klasse A | C9: 2013 | D9: 50 | E9: 14771449 | F9: =E9/D9 -> 295428.98 | G9: kr.
B10: Ø 200 mm < Ledningsnet = Ø 500 mm | C10: 2013 | D10: 75 | E10: 137831202 | F10: 1837749.36 | G10: kr.
B11: Forafvanding, slam, SRO | C11: 2013 | D11: 10 | E11: 3754885 | F11: 375488.5 | G11: kr.
B12: Beluftningstanke, Mek/EL | C12: 2013 | D12: 20 | E12: 8233952 | F12: 411697.6 | G12: kr.
B13: Arbejdsplads | C13: 2013 | D13: 5 | E13: 153112 | F13: 30622.4 | G13: kr.
B14: Køretøjer, personbil | C14: 2013 | D14: 5 | E14: 592223 | F14: 118444.6 | G14: kr.
B15: Administrationbygninger | C15: 2013 | D15: 75 | E15: 1158825 | F15: 15451 | G15: kr.
B16: Strømpeforing = Ø 200 mm | C16: 2013 | D16: 50 | E16: 35029397 | F16: 700587.94 | G16: kr.
B17: Pumpestationer i brønde (< 6,25 m2), Konstruktioner | C17: 2013 | D17: 50 | E17: 9129407 | F17: 182588.14 | G17: kr.
B18: Gasdisponering, Mek/EL | C18: 2013 | D18: 20 | E18: 6271162 | F18: 313558.1 | G18: kr.
B19: Tillæg for 2013 | F19: =SUM(F8:F18) -> 5254739.42 | G19: kr.
B20: Tillæg for 2010 - 2012 | F20: 18490856.78 | G20: kr.
B21: Samlet tillæg for gennemførte investeringer | F21: =F19+F20 -> 23745596.2 | G21: kr.

Sheet 6. Korrektion investeringer
A1: ='5. Gennemførte investeringer'!A1 -> Århus Vand A/S (spildevand)
B4: Fane 6. Korrektion af tillæg for planlagte investeringer
B6: Korrektion af tillæg for planlagte investeringer vedr. 2013
B7: Tillæg for planlagte investeringer i 2013 i prisloft 2013 | C7: 6294133 | D7: kr.
B8: Tillæg for planlagte investeringer i 2013 i prisloft 2014 | C8: 6451267 | D8: kr.
B9: Selskabets faktiske afskrivninger på gennemførte investeringer i 2013 | C9: ='5. Gennemførte investeringer'!F19 -> 5254739.42 | D9: kr.
B10: Korrektion af tillæg for planlagte investeringer vedr. 2013 | C10: =C9-C7+C9-C8 -> -2235921.16 | D10: kr.

Sheet 7. Planlagte investeringer
A1: ='6. Korrektion investeringer'!A1 -> Århus Vand A/S (spildevand)
B4: Fane 7. Planlagte investeringer
B6: Tillæg for planlagte investeringer i 2014 og 2015
B7: Beskrivelse af investeringen | C7: Årstal | D7: Std. levetid (år) | E7: Anskaffelses-pris (kr.) | F7: Afskrivning
B8: Ø 200 mm < Ledningsnet = Ø 500 mm | C8: 2014 | D8: 75 | E8: 240000000 | F8: =E8/D8 -> 3200000 | G8: kr.
B9: Strømpeforing Ø 200 mm < Ledningsnet = Ø 500 mm | C9: 2014 | D9: 50 | E9: 23400000 | F9: =E9/D9 -> 468000 | G9: kr.
B10: Pumpeinstallation Miljøklasse A (100-300 l/s) - Mek/EL | C10: 2014 | D10: 20 | E10: 19000000 | F10: =E10/D10 -> 950000 | G10: kr.
B11: Indløb med riste, Mek/EL | C11: 2014 | D11: 20 | E11: 20000000 | F11: 1000000 | G11: kr.
B12: Jordbassin Klasse A | C12: 2014 | D12: 50 | E12: 7500000 | F12: 150000 | G12: kr.
B13: Administrationbygninger | C13: 2014 | D13: 75 | E13: 1125000 | F13: 15000 | G13: kr.
B14: Arbejdsplads | C14: 2014 | D14: 5 | E14: 1375000 | F14: 275000 | G14: kr.
B15: Ø 200 mm < Ledningsnet = Ø 500 mm | C15: 2015 | D15: 75 | E15: 186000000 | F15: 2480000 | G15: kr.
B16: Strømpeforing Ø 200 mm < Ledningsnet = Ø 500 mm | C16: 2015 | D16: 50 | E16: 23900000 | F16: 478000 | G16: kr.
B17: Pumpeinstallation Miljøklasse A (100-300 l/s) - Mek/EL | C17: 2015 | D17: 20 | E17: 26000000 | F17: 1300000 | G17: kr.
B18: Beluftningstanke, Mek/EL | C18: 2015 | D18: 20 | E18: 20000000 | F18: 1000000 | G18: kr.
B19: Jordbassin Klasse A | C19: 2015 | D19: 50 | E19: 77500000 | F19: 1550000 | G19: kr.
B20: Administrationbygninger | C20: 2015 | D20: 75 | E20: 1500000 | F20: 20000 | G20: kr.
B21: Arbejdsplads | C21: 2015 | D21: 5 | E21: 3400000 | F21: 680000 | G21: kr.
B22: Tillæg for 2014 | F22: =SUMIF(C8:C21,"2014",F8:F21) -> 6058000 | G22: kr.
B23: Tillæg for 2015 | F23: =SUMIF(C8:C21,"2015",F8:F21) -> 7508000 | G23: kr.
B24: Tillæg i alt | F24: =F22+F23 -> 13566000 | G24: kr.

Sheet 8. 1-1 omkostninger
A1: ='7. Planlagte investeringer'!A1 -> Århus Vand A/S (spildevand)
B4: Fane 8. 1:1 omkostninger
B6: Tillæg for budgetterede 1:1 omkostninger i 2015
B7: Betaling til Forsyningssekretariatet | C7: 16500 | D7: kr.
B8: Spildevandsafgift | C8: 4100000 | D8: kr.
B9: Selskabsskat | C9: 1500000 | D9: kr.
B10: Køb af varer og tjenesteydelser hos et andet prisloftreguleret vandselskab | C10: 1800000 | D10: kr.
B11: Tjenestemandspensioner | C11: 6500000 | D11: kr.
B12: Ejendomsskatter | C12: 2300000 | D12: kr.
B13: Tillæg i alt | C13: =SUM(C7:C12) -> 16216500 | D13: kr.
B18: Tillæg for budgetterede nødvendige udgifter til revisorerklæringer samt ordinært medlemskab af DANVA og FVD i 2015
B19: Betaling for ordinært medlemskab af DANVA/FVD | C19: 300000 | D19: kr.
B20: Betaling for revisorerklæringer | C20: 25000 | D20: kr.
B21: Tillæg i alt | C21: =SUM(C19:C20) -> 325000 | D21: kr.
B24: Korrektion af tillæg for faktiske 1:1 omkostninger (inkl. revisorerklæringer og ordinært medlemskab af DANVA/FVD) i 2013
B25: Selskabets faktiske 1:1 omkostninger mv. i 2013, jf. reguleringsregnskabet | C25: 18121580 | D25: kr.
B26: Tillæg for budgetterede 1:1 omkostninger mv. i prisloft 2013 | C26: 15702267 | D26: kr.
B27: Korrektion af tillæg for budgetterede 1:1 omkostninger mv. i 2013 | C27: =C25-C26 -> 2419313 | D27: kr.

Sheet 9. Miljø- og servicemål
A1: ='8. 1-1 omkostninger'!A1 -> Århus Vand A/S (spildevand)
B4: Fane 9. Driftsomkostninger til miljø- og servicemål
B6: Tillæg for budgetterede driftsomkostninger til miljø- og servicemål i 2015
B7: Klimatilpasning af Lystrup - del 1 | C7: 100000 | D7: kr.
B8: Klimatilpasning af Lystrup - del 2 | C8: 0 | D8: kr.
B9: Tillæg i alt | C9: =SUM(C7:C8) -> 100000 | D9: kr.
B13: Korrektion af tillæg for faktiske driftsomkostninger til miljø- og servicemål i 2013
B14: Selskabets faktiske driftsomkostninger til miljø- og servicemål i 2013, jf. reguleringsregnskabet | C14: 0 | D14: kr.
B15: Tillæg for budgetterede driftsomkostninger til miljø- og servicemål i prisloft 2013 | C15: 0 | D15: kr.
B16: Korrektion af tillæg for budgetterede driftsomkostninger til miljø- og servicemål i 2013 | C16: =C14-C15 -> 0 | D16: kr.

Sheet 10. Klimatilpasning
A1: ='9. Miljø- og servicemål'!A1 -> Århus Vand A/S (spildevand)
B4: Fane 10. Medfinansiering af klimatilpasningsprojekter
B7: Tillæg for budgetterede omkostninger til medfinansiering af klimatilpasningsprojekter i 2015
B8: Sluse- og pumpeanlæg (Godkendt i PL2013) | C8: 2000000 | D8: kr.
B9: Lystrup - part 1 (Godkendt i PL2014) | C9: 500000 | D9: kr.
B10: Lystrup - part 2 (Godkendt i PL2015) | C10: 22867 | D10: kr.
B11: Tillæg i alt | C11: =SUM(C8:C10) -> 2522867 | D11: kr.
B15: Korrektion af tillæg for faktiske omkostninger til medfinansiering af klimatilpasningsprojekter i 2013
B16: Selskabets faktiske driftsomkostninger til klimatilpasningsprojekter i 2013, jf. reguleringsregnskabet | C16: 0 | D16: kr.
B17: Tillæg for budgetterede driftsomkostninger til klimatilpasningsprojekter i prisloft 2013 | C17: 2151630 | D17: kr.
B18: Korrektion af tillæg for budgetterede omkostninger til klimatilpasningsprojekter i 2013 | C18: =C16-C17 -> -2151630 | D18: kr.

Sheet 11. Nettofinansielle poster
A1: ='10. Klimatilpasning'!A1 -> Århus Vand A/S (spildevand)
B4: Fane 11. Nettofinansielle poster
B6: Tillæg for budgetterede nettofinansielle poster i 2015
B7: Budgetterede renteudgifter og gebyrer i 2015 | C7: 10000000 | D7: kr.
B8: Budgetterede renteindtægter i 2015 | C8: 1200000 | D8: kr.
B9: Tillæg/fradrag i alt | C9: =C7-C8 -> 8800000 | D9: kr.
B13: Korrektion af tillæg for faktiske nettofinansielle poster i 2013
B14: Selskabets faktiske nettofinansielle poster i 2013, jf. reguleringsregnskabet | C14: 7125689 | D14: kr.
B15: Tillæg for budgetterede nettofinansielle poster i prisloft 2013 | C15: 10200000 | D15: kr.
B16: Korrektion af tillæg for budgetterede nettofinansielle poster i 2013 | C16: =C14-C15 -> -3074311 | D16: kr.

Sheet 12. Over- eller underdækning
A1: ='11. Nettofinansielle poster'!A1 -> Århus Vand A/S (spildevand)
B4: Fane 12. Over- eller underdækning til og med 2010
B6: Tillæg/fradrag for over- eller underdækning til og med 2010
B7: Opgjort over- eller underdækning per 31. december 2010 | C7: 48943000 | D7: kr.
B8: Heraf beløb indregnet i prislofterne for 2011 - 2014 | C8: 22984728.24 | D8: kr.
B9: Endnu ikke indregnet over- eller underdækning | C9: =C7-C8 -> 25958271.76 | D9: kr.
B10: Resterende indregningsperiode (fastsat i prisloftet for 2012) | C10: 6 | D10: år
B11: Tillæg/fradrag i alt | C11: =IF(C7=0,0,C9/C10) -> 4326378.627 | D11: kr.

Sheet 13. Kontrol med indtægtsrammen
A1: ='12. Over- eller underdækning'!A1 -> Århus Vand A/S (spildevand)
B4: Fane 13. Korrektion for overholdelse af indtægtsrammen i prisloftet for 2013
B6: Samlet opgørelse vedrørende overholdelse af indtægtsrammen i prisloftet for 2013
B7: Indtægtsramme i prisloftet for 2013 | E7: 387640431.7 | F7: kr.
B8: Ikke anvendt likviditet vedrørende investeringer i 2013
B9: Tillæg for historiske investeringer | C9: 176879947 | D9: kr.
B10: Tillæg for gennemførte investeringer i 2011 | C10: 13743900 | D10: kr.
B11: Korrektion af tillæg for planlagte investeringer i 2011 | C11: 341641 | D11: kr.
B12: Tillæg for planlagte investeringer i 2012 og 2013 | C12: 11104967 | D12: kr.
B13: Indtægter fra tilslutningsbidrag | C13: 20476975 | D13: kr.
B14: Indtægter fra salg af anlægsaktiver | C14: 76497 | D14: kr.
B15: Erstatninger vedr. anlægsaktiver mv. | C15: 0 | D15: kr.
B16: Ekstraordinær effektiviseringsgevinst anvendt til investeringer | C16: 23653242 | D16: kr.
B17: Udgifter til investeringer | C17: -246277170 | D17: kr.
B18: Ikke anvendt likviditet vedr. investeringer i alt | C18: =SUM(C9:C17) -> -1.049332201 | D18: kr. | E18: =IF(C18<0,0,-C18) -> 0 | F18: kr.
B19: Ekstraordinære effektiviseringsgevinster anvendt til takstnedsættelse
B20: Ekstraordinær effektiviseringsgevinst anvendt til takstnedsættelse | C20: 0 | D20: kr. | E20: =-C20 -> 0 | F20: kr.
B21: Korrektion af ikke opkrævet tillæg fra 2011 i prisloft 2013
B22: Korrektion af ikke opkrævet tillæg fra 2011 i prisloft 2013 | C22: 0 | D22: kr. | E22: =-C22 -> 0 | F22: kr.
B23: Indtægter fra primære aktiviteter mv.
B24: Indtægter fra kubikmetertakster, faste takster, særbidrag, målergebyrer samt andre takster og gebyrer | C24: 354596005 | D24: kr.
B25: Andre indtægter i prisloftåret, som selskabet har opnået i forbindelse med eller som følge af selskabets primære aktiviteter | C25: 0 | D25: kr.
B26: Indtægter fra primære aktiviteter mv. i alt | C26: =SUM(C24:C25) -> 354596005 | D26: kr. | E26: =-C26 -> -354596005 | F26: kr.
B27: Tillæg/fradrag i prisloftet for 2015 i alt | E27: =E7+E18+E20+E22+E26 -> 33044426.66 | F27: kr.
B31: Oversigt over ekstraordinære effektiviseringsgevinster
C33: 2012 | E33: 2013 | G33: 2014 | I33: 2015 | K33: 2016
B34: Indhentet ekstraordinær effektiviseringsgevinst | C34: 23653242 | D34: kr. | E34: 28772618 | F34: kr. | H34: kr. | J34: kr. | L34: kr.
B35: Gevinst anvendt til investeringer | C35: 0 | D35: kr. | E35: 23653242 | F35: kr. | H35: kr. | J35: kr. | L35: kr.
B36: Gevinst anvendt til takstnedsættelse | C36: 0 | D36: kr. | E36: 0 | F36: kr. | H36: kr. | J36: kr. | L36: kr.
B37: Korrektion for effektiviseringsgevinst der ikke er anvendt inden 4 år | C37: 0 | D37: kr. | E37: 0 | F37: kr. | H37: kr. | J37: kr. | K37: =IF(C38>SUM(E35:I36),C38-SUM(E35:I36),0)*-1 -> 0 | L37: kr.
B38: Resterende gevinst | C38: =C34-C35-C36 -> 23653242 | D38: kr. | E38: =C38+E34-E35-E36 -> 28772618 | F38: kr. | G38: =E38+G34-G35-G36 -> 28772618 | H38: kr. | I38: =G38+I34-I35-I36 -> 28772618 | J38: kr. | K38: =K34-K35-K36+K37+I38 -> 28772618 | L38: kr.

Sheet 14. EAA-beregning
B2: Vejledning:
B3: Dette dokument kan anvendes til at vurdere, hvorvidt klimatilpasning ved hhv. sædvanlig afhjælpning eller alternativt projekt er mest omkostningseffektivt. Oplysninger om forventet årlig effektiv rente
B4: samt omkostninger til anlæg og drift skal indtastes i de orange celler. Det bemærkes, at omkostninger indgår som negative tal.
B5: Herefter beregnes den årlige ækvivalente annuitet ved de to typer klimatilpasningsinitiativer. Sidst beregnes hvilket klimatilpasningsinitiativ, som er mest omkostningseffektivt
B8: Rente | E8: Resultater
B10: Forventet årlig effektiv rente | C10: 0.0147 | E10: Årlig ækvivalent annuitet ved sædvanlig afhjælpning | F10: =IF(SUM($C$21:$C$144)<0,($C$10*SUM($K$25:$K$144)/(1-(1+$C$10)^(-($C$19-$C$18+1)))),"") -> -2425995.505
E11: Årlig ækvivalent annuitet ved alternativt klimatilpasningsprojekt | F11: =IF(SUM($F$25:$G$144)<0,($C$10*SUM($L$25:$L$144)/(1-(1+$C$10)^(-($F$19-$F$18+1)))),"") -> -17140.34098
E13: Konklusion | F13: =IF($F$10<0,IF($F$10<>$F$11,IF($F$10>$F$11,"Sædvanlig afhjælpning er mest omkostningseffektivt","Alternativt projekt er mest omkostningseffektivt"),"Sædvanlig afhjælpning og alternativt projekt er lige omkostningseffektivt"),"") -> Alternativt projekt er mest omkostningseffektivt
B16: Klimatilpasning ved sædvanlig afhjælpning | E16: Klimatilpasning ved alternativt klimatilpasningsprojekt
B18: Projektets startår | C18: 2015 | E18: Projektets startår | F18: 2015 | L18: =IF($E18>=$F$18,IF($E18<=$F$19,SUM($F18:$G18),""),"") -> 
B19: Projektets slutår | C19: 2090 | E19: Projektets slutår | F19: 2090 | L19: =IF($E19>=$F$18,IF($E19<=$F$19,SUM($F19:$G19),""),"") -> 
B21: Samlede anlægsomkostninger | C21: -106478151
B24: År | C24: Forventede driftsomkostninger i år t | E24: År | F24: Tilskud til anlægsomkostninger betalt i år t | G24: Tilskud til driftsomkostninger betalt i år t | I24: Sædvanlig afhjælpning: Cash-flow for anlæg | J24: Sædvanlig afhjælpning: Cash-flow for drift | K24: Tilbagediskonteret cash-flow for sædvanlig afhjælpning | L24: Tilbagediskonteret cash-flow for alternativt projekt
B25: 2015 | C25: -89640 | E25: 2015 | F25: -22867 | G25: 0 | I25: =IF($B25=$C$18,$C$21,"") -> -106478151 | J25: =IF($B25>=$C$18,IF($B25<=$C$19,$C25,""),"") -> -89640 | K25: =IF(SUM($I25:$J25)/((1+$C$10)^($B25-$C$18))<0,SUM($I25:$J25)/((1+$C$10)^($B25-$C$18)),"") -> -106567791 | L25: =IF($E25>=$F$18,IF($E25<=$F$19,IF(SUM($F25:$G25)/((1+$C$10)^($E25-$F$18))<0,SUM($F25:$G25)/((1+$C$10)^($E25-$F$18)),""),""),"") -> -22867
B26: 2016 | C26: -89640 | E26: 2016 | F26: -22867 | G26: -6604 | I26: =IF($B26=$C$18,$C$21,"") ->  | J26: =IF($B26>=$C$18,IF($B26<=$C$19,$C26,""),"") -> -89640 | K26: =IF(SUM($I26:$J26)/((1+$C$10)^($B26-$C$18))<0,SUM($I26:$J26)/((1+$C$10)^($B26-$C$18)),"") -> -88341.38169 | L26: =IF($E26>=$F$18,IF($E26<=$F$19,IF(SUM($F26:$G26)/((1+$C$10)^($E26-$F$18))<0,SUM($F26:$G26)/((1+$C$10)^($E26-$F$18)),""),""),"") -> -29044.05243
B27: =B26+1 -> 2017 | C27: -89640 | E27: =E26+1 -> 2017 | F27: -22867 | G27: -6604 | J27: -89640 | K27: -87061.57651 | L27: -28623.29007
B28: =B27+1 -> 2018 | C28: -89640 | E28: =E27+1 -> 2018 | F28: -22867 | G28: -6604 | J28: -89640 | K28: -85800.31193 | L28: -28208.6233
B29: 2019 | C29: -89640 | E29: 2019 | F29: -22867 | G29: -6604 | J29: -89640 | K29: -84557.31933 | L29: -27799.96383
B30: 2020 | C30: -89640 | E30: 2020 | F30: -22867 | G30: -6604 | J30: -89640 | K30: -83332.33402 | L30: -27397.22463
B31: 2021 | C31: -89640 | E31: 2021 | F31: -22867 | G31: -6604 | J31: -89640 | K31: -82125.09513 | L31: -27000.31993
B32: 2022 | C32: -89640 | E32: 2022 | F32: -22867 | G32: -6604 | J32: -89640 | K32: -80935.34555 | L32: -26609.1652
B33: 2023 | C33: -89640 | E33: 2023 | F33: -22867 | G33: -6604 | J33: -89640 | K33: -79762.83192 | L33: -26223.67715
B34: 2024 | C34: -89640 | E34: 2024 | F34: -22867 | G34: -6604 | J34: -89640 | K34: -78607.30454 | L34: -25843.77367
B35: 2025 | C35: -89640 | E35: 2025 | F35: -22867 | G35: -6604 | J35: -89640 | K35: -77468.51734 | L35: -25469.37388
B36: 2026 | C36: -89640 | E36: 2026 | F36: -22867 | G36: -6604 | J36: -89640 | K36: -76346.22779 | L36: -25100.39803
B37: 2027 | C37: -89640 | E37: 2027 | F37: -22867 | G37: -6604 | J37: -89640 | K37: -75240.19689 | L37: -24736.76754
B38: 2028 | C38: -89640 | E38: 2028 | F38: -22867 | G38: -6604 | J38: -89640 | K38: -74150.18911 | L38: -24378.40499
B39: 2029 | C39: -89640 | E39: 2029 | F39: -22867 | G39: -6604 | J39: -89640 | K39: -73075.97232 | L39: -24025.23405
B40: 2030 | C40: -89640 | E40: 2030 | F40: -22867 | G40: -6604 | J40: -89640 | K40: -72017.31775 | L40: -23677.17951
B41: 2031 | C41: -89640 | E41: 2031 | F41: -22867 | G41: -6604 | J41: -89640 | K41: -70973.99995 | L41: -23334.16725
B42: 2032 | C42: -89640 | E42: 2032 | F42: -22867 | G42: -6604 | J42: -89640 | K42: -69945.79674 | L42: -22996.12423
B43: 2033 | C43: -89640 | E43: 2033 | F43: -22867 | G43: -6604 | J43: -89640 | K43: -68932.48915 | L43: -22662.97844
B44: 2034 | C44: -89640 | E44: 2034 | F44: -22867 | G44: -6604 | J44: -89640 | K44: -67933.86139 | L44: -22334.65896
B45: 2035 | C45: -89640 | E45: 2035 | F45: -22867 | G45: -6604 | J45: -89640 | K45: -66949.70078 | L45: -22011.09585
B46: 2036 | C46: -89640 | E46: 2036 | F46: -22867 | G46: -6604 | J46: -89640 | K46: -65979.79776 | L46: -21692.22021
B47: 2037 | C47: -89640 | E47: 2037 | F47: -22867 | G47: -6604 | J47: -89640 | K47: -65023.94575 | L47: -21377.96414
B48: 2038 | C48: -89640 | E48: 2038 | F48: -22867 | G48: -6604 | J48: -89640 | K48: -64081.94122 | L48: -21068.26071
B49: 2039 | C49: -89640 | E49: 2039 | F49: -22867 | G49: -6604 | J49: -89640 | K49: -63153.58354 | L49: -20763.04396
B50: 2040 | C50: -89640 | E50: 2040 | G50: -6604 | J50: -89640 | K50: -62238.67502 | L50: -4585.276772
B51: 2041 | C51: -89640 | E51: 2041 | G51: -6604 | J51: -89640 | K51: -61337.02081 | L51: -4518.849681
B52: 2042 | C52: -89640 | E52: 2042 | G52: -6604 | J52: -89640 | K52: -60448.42891 | L52: -4453.384923
B53: 2043 | C53: -89640 | E53: 2043 | G53: -6604 | J53: -89640 | K53: -59572.71007 | L53: -4388.868555
B54: 2044 | C54: -89640 | E54: 2044 | G54: -6604 | J54: -89640 | K54: -58709.6778 | L54: -4325.286839
B55: 2045 | C55: -89640 | E55: 2045 | G55: -6604 | J55: -89640 | K55: -57859.14832 | L55: -4262.626233
B56: 2046 | C56: -89640 | E56: 2046 | G56: -6604 | J56: -89640 | K56: -57020.9405 | L56: -4200.873394
B57: 2047 | C57: -89640 | E57: 2047 | G57: -6604 | J57: -89640 | K57: -56194.87582 | L57: -4140.015171
B58: 2048 | C58: -89640 | E58: 2048 | G58: -6604 | J58: -89640 | K58: -55380.77838 | L58: -4080.038604
B59: 2049 | C59: -89640 | E59: 2049 | G59: -6604 | J59: -89640 | K59: -54578.4748 | L59: -4020.930919
B60: 2050 | C60: -89640 | E60: 2050 | G60: -6604 | J60: -89640 | K60: -53787.79423 | L60: -3962.67953
B61: 2051 | C61: -89640 | E61: 2051 | G61: -6604 | J61: -89640 | K61: -53008.56827 | L61: -3905.272031
B62: 2052 | C62: -89640 | E62: 2052 | G62: -6604 | J62: -89640 | K62: -52240.631 | L62: -3848.696197
B63: 2053 | C63: -89640 | E63: 2053 | G63: -6604 | J63: -89640 | K63: -51483.81886 | L63: -3792.939979
B64: 2054 | C64: -89640 | E64: 2054 | G64: -6604 | J64: -89640 | K64: -50737.97069 | L64: -3737.991504
B65: 2055 | C65: -89640 | E65: 2055 | G65: -6604 | J65: -89640 | K65: -50002.92766 | L65: -3683.83907
B66: 2056 | C66: -89640 | E66: 2056 | G66: -6604 | J66: -89640 | K66: -49278.53322 | L66: -3630.471144
B67: 2057 | C67: -89640 | E67: 2057 | G67: -6604 | J67: -89640 | K67: -48564.63311 | L67: -3577.876362
B68: 2058 | C68: -89640 | E68: 2058 | G68: -6604 | J68: -89640 | K68: -47861.0753 | L68: -3526.043522
B69: 2059 | C69: -89640 | E69: 2059 | G69: -6604 | J69: -89640 | K69: -47167.70997 | L69: -3474.961587
B70: 2060 | C70: -89640 | E70: 2060 | G70: -6604 | J70: -89640 | K70: -46484.38944 | L70: -3424.619677
B71: 2061 | C71: -89640 | E71: 2061 | G71: -6604 | J71: -89640 | K71: -45810.96821 | L71: -3375.007073
B72: 2062 | C72: -89640 | E72: 2062 | G72: -6604 | J72: -89640 | K72: -45147.30286 | L72: -3326.113209
B73: 2063 | C73: -89640 | E73: 2063 | G73: -6604 | J73: -89640 | K73: -44493.25205 | L73: -3277.927672
B74: 2064 | C74: -89640 | E74: 2064 | G74: -6604 | J74: -89640 | K74: -43848.67651 | L74: -3230.440201
B75: 2065 | C75: -89640 | E75: 2065 | G75: -6604 | J75: -89640 | K75: -43213.43895 | L75: -3183.640683
B76: 2066 | C76: -89640 | E76: 2066 | G76: -6604 | J76: -89640 | K76: -42587.40411 | L76: -3137.519152
B77: 2067 | C77: -89640 | E77: 2067 | G77: -6604 | J77: -89640 | K77: -41970.43867 | L77: -3092.065785
B78: 2068 | C78: -89640 | E78: 2068 | G78: -6604 | J78: -89640 | K78: -41362.41122 | L78: -3047.270903
B79: 2069 | C79: -89640 | E79: 2069 | G79: -6604 | J79: -89640 | K79: -40763.19229 | L79: -3003.124966
B80: 2070 | C80: -89640 | E80: 2070 | G80: -6604 | J80: -89640 | K80: -40172.65428 | L80: -2959.618573
B81: 2071 | C81: -89640 | E81: 2071 | G81: -6604 | J81: -89640 | K81: -39590.67141 | L81: -2916.742458
B82: 2072 | C82: -89640 | E82: 2072 | G82: -6604 | J82: -89640 | K82: -39017.11975 | L82: -2874.487492
B83: 2073 | C83: -89640 | E83: 2073 | G83: -6604 | J83: -89640 | K83: -38451.87715 | L83: -2832.844676
B84: 2074 | C84: -89640 | E84: 2074 | G84: -6604 | J84: -89640 | K84: -37894.82325 | L84: -2791.80514
B85: 2075 | C85: -89640 | E85: 2075 | G85: -6604 | J85: -89640 | K85: -37345.83941 | L85: -2751.360146
B86: 2076 | C86: -89640 | E86: 2076 | G86: -6604 | J86: -89640 | K86: -36804.80872 | L86: -2711.50108
B87: 2077 | C87: -89640 | E87: 2077 | G87: -6604 | J87: -89640 | K87: -36271.61597 | L87: -2672.219454
B88: 2078 | C88: -89640 | E88: 2078 | G88: -6604 | J88: -89640 | K88: -35746.1476 | L88: -2633.506903
B89: 2079 | C89: -89640 | E89: 2079 | G89: -6604 | J89: -89640 | K89: -35228.29171 | L89: -2595.355181
B90: 2080 | C90: -89640 | E90: 2080 | G90: -6604 | I90: =IF($B90=$C$18,$C$21,"") ->  | J90: =IF($B90>=$C$18,IF($B90<=$C$19,$C90,""),"") -> -89640 | K90: =IF(SUM($I90:$J90)/((1+$C$10)^($B90-$C$18))<0,SUM($I90:$J90)/((1+$C$10)^($B90-$C$18)),"") -> -34717.93802 | L90: =IF($E90>=$F$18,IF($E90<=$F$19,IF(SUM($F90:$G90)/((1+$C$10)^($E90-$F$18))<0,SUM($F90:$G90)/((1+$C$10)^($E90-$F$18)),""),""),"") -> -2557.756166
B91: 2081 | C91: -89640 | E91: 2081 | G91: -6604 | J91: -89640 | K91: -34214.97785 | L91: -2520.701849
B92: =B91+1 -> 2082 | C92: -89640 | E92: =E91+1 -> 2082 | G92: -6604 | J92: -89640 | K92: -33719.30408 | L92: -2484.184339
B93: =B92+1 -> 2083 | C93: -89640 | E93: =E92+1 -> 2083 | G93: -6604 | J93: -89640 | K93: -33230.81115 | L93: -2448.19586
B94: =B93+1 -> 2084 | C94: -89640 | E94: =E93+1 -> 2084 | G94: -6604 | J94: -89640 | K94: -32749.39505 | L94: -2412.728747
B95: =B94+1 -> 2085 | C95: -89640 | E95: =E94+1 -> 2085 | G95: -6604 | J95: -89640 | K95: -32274.95323 | L95: -2377.775448
B96: 2086 | C96: -89640 | E96: 2086 | G96: -6604 | J96: -89640 | K96: -31807.38468 | L96: -2343.328519
B97: 2087 | C97: -89640 | E97: 2087 | G97: -6604 | J97: -89640 | K97: -31346.58981 | L97: -2309.380624
B98: 2088 | C98: -89640 | E98: 2088 | G98: -6604 | J98: -89640 | K98: -30892.47049 | L98: -2275.924533
B99: 2089 | C99: -89640 | E99: 2089 | G99: -6604 | J99: -89640 | K99: -30444.93002 | L99: -2242.953122
B100: 2090 | E100: 2090 | G100: -6604 | J100: 0 | L100: -2210.459369
B101: 2091 | E101: 2091
B102: 2092 | E102: 2092
B103: 2093 | E103: 2093
B104: 2094 | E104: 2094
B105: =B104+1 -> 2095 | E105: =E104+1 -> 2095
B106: =B105+1 -> 2096 | E106: =E105+1 -> 2096
B107: 2097 | E107: 2097
B108: 2098 | E108: 2098
B109: 2099 | E109: 2099
B110: 2100 | E110: 2100
B111: 2101 | E111: 2101
B112: 2102 | E112: 2102
B113: 2103 | E113: 2103
B114: 2104 | E114: 2104
B115: 2105 | E115: 2105
B116: 2106 | E116: 2106
B117: 2107 | E117: 2107
B118: 2108 | E118: 2108
B119: 2109 | E119: 2109
B120: 2110 | E120: 2110
B121: 2111 | E121: 2111
B122: 2112 | E122: 2112
B123: 2113 | E123: 2113
B124: 2114 | E124: 2114
B125: 2115 | E125: 2115
B126: 2116 | E126: 2116
B127: 2117 | E127: 2117
B128: 2118 | E128: 2118
B129: 2119 | E129: 2119
B130: 2120 | E130: 2120
B131: 2121 | E131: 2121
B132: 2122 | E132: 2122
B133: 2123 | E133: 2123
B134: 2124 | E134: 2124
B135: 2125 | E135: 2125
B136: 2126 | E136: 2126
B137: 2127 | E137: 2127
B138: 2128 | E138: 2128
B139: 2129 | E139: 2129
B140: 2130 | E140: 2130
B141: 2131 | E141: 2131
B142: 2132 | E142: 2132
B143: 2133 | E143: 2133
B144: 2134 | E144: 2134
